[Event "*** Titled Tuesday Blitz"]
[Site "Chess.com"]
[Date "2020.05.12"]
[Round "4"]
[White "pheonixking2000"]
[Black "Dinamo81"]
[Result "1/2-1/2"]
[WhiteElo "2814"]
[BlackElo "2622"]
[TimeControl "180+1"]
[EndTime "10:40:03 PDT"]
[Termination "Game drawn - insufficient material"]

1. c4 {[%clk 0:03:00.9]} 1... e6 {[%clk 0:02:59.3]} 2. Nc3 {[%clk 0:02:47.3]}
2... d5 {[%clk 0:02:58.4]} 3. d4 {[%clk 0:02:46.9]} 3... a6 {[%clk 0:02:57.7]}
4. cxd5 {[%clk 0:02:45.1]} 4... exd5 {[%clk 0:02:57.7]} 5. Bf4 {[%clk
0:02:45.4]} 5... c6 {[%clk 0:02:57.6]} 6. Nf3 {[%clk 0:02:40.8]} 6... Bd6 {[%clk
0:02:52.9]} 7. Bg3 {[%clk 0:02:21.8]} 7... Ne7 {[%clk 0:02:48.2]} 8. e3 {[%clk
0:02:22.3]} 8... O-O {[%clk 0:02:41]} 9. Rc1 {[%clk 0:02:20.4]} 9... Nf5 {[%clk
0:02:29.5]} 10. Bxd6 {[%clk 0:02:18.2]} 10... Nxd6 {[%clk 0:02:29]} 11. Bd3
{[%clk 0:02:10.9]} 11... Bf5 {[%clk 0:02:28.2]} 12. O-O {[%clk 0:02:11.5]} 12...
Nd7 {[%clk 0:02:24.7]} 13. Bxf5 {[%clk 0:02:10.9]} 13... Nxf5 {[%clk 0:02:23.7]}
14. Qb3 {[%clk 0:02:11.5]} 14... Nd6 {[%clk 0:02:22]} 15. Qb4 {[%clk 0:02:06.8]}
15... Qe7 {[%clk 0:02:18.9]} 16. Rfe1 {[%clk 0:02:04.5]} 16... Rfe8 {[%clk
0:02:18.8]} 17. Na4 {[%clk 0:01:58.7]} 17... Rab8 {[%clk 0:02:15.6]} 18. Qb3
{[%clk 0:01:52.4]} 18... h5 {[%clk 0:02:07.4]} 19. Rc2 {[%clk 0:01:43.6]} 19...
Nf6 {[%clk 0:02:01]} 20. h3 {[%clk 0:01:39.6]} 20... Nfe4 {[%clk 0:01:59.5]} 21.
Ne5 {[%clk 0:01:34.1]} 21... f6 {[%clk 0:01:56.9]} 22. Nd3 {[%clk 0:01:34.5]}
22... g5 {[%clk 0:01:51]} 23. Nac5 {[%clk 0:01:34.8]} 23... Qf7 {[%clk
0:01:46.4]} 24. Nxe4 {[%clk 0:01:33.7]} 24... Nxe4 {[%clk 0:01:38.3]} 25. f3
{[%clk 0:01:29.8]} 25... Nd6 {[%clk 0:01:37.4]} 26. Rce2 {[%clk 0:01:25.9]}
26... Rbd8 {[%clk 0:01:34.8]} 27. Nc5 {[%clk 0:01:21.9]} 27... Re7 {[%clk
0:01:34.5]} 28. Qd3 {[%clk 0:01:18]} 28... Kg7 {[%clk 0:01:31]} 29. a4 {[%clk
0:01:16.3]} 29... Qg6 {[%clk 0:01:28.1]} 30. e4 {[%clk 0:01:13]} 30... dxe4
{[%clk 0:01:20.7]} 31. fxe4 {[%clk 0:01:13.9]} 31... Rde8 {[%clk 0:01:12.9]} 32.
Qf3 {[%clk 0:01:14.4]} 32... Nf7 {[%clk 0:01:07.3]} 33. Nd3 {[%clk 0:01:07.2]}
33... a5 {[%clk 0:00:52.5]} 34. h4 {[%clk 0:01:01.9]} 34... Rd8 {[%clk 0:00:48]}
35. hxg5 {[%clk 0:01:01.1]} 35... Nxg5 {[%clk 0:00:47.3]} 36. Qf1 {[%clk
0:00:49.2]} 36... Rxd4 {[%clk 0:00:45.5]} 37. Nf4 {[%clk 0:00:49.8]} 37... Qf7
{[%clk 0:00:43.4]} 38. Qf2 {[%clk 0:00:43.6]} 38... Rdxe4 {[%clk 0:00:41.6]} 39.
Rxe4 {[%clk 0:00:41.6]} 39... Rxe4 {[%clk 0:00:42.5]} 40. Rxe4 {[%clk
0:00:37.2]} 40... Nxe4 {[%clk 0:00:43.4]} 41. Qe2 {[%clk 0:00:37.2]} 41... f5
{[%clk 0:00:29.9]} 42. Nxh5+ {[%clk 0:00:35.8]} 42... Kf8 {[%clk 0:00:30]} 43.
Nf4 {[%clk 0:00:33.1]} 43... Qf6 {[%clk 0:00:29.3]} 44. Qd1 {[%clk 0:00:27.2]}
44... Qd6 {[%clk 0:00:28.5]} 45. Qxd6+ {[%clk 0:00:22.6]} 45... Nxd6 {[%clk
0:00:29.4]} 46. Kf2 {[%clk 0:00:23.5]} 46... Nc4 {[%clk 0:00:28.4]} 47. Nd3
{[%clk 0:00:21.3]} 47... Ke7 {[%clk 0:00:27.5]} 48. Kf3 {[%clk 0:00:21.2]} 48...
Kf6 {[%clk 0:00:27]} 49. Kf4 {[%clk 0:00:19.6]} 49... Nb6 {[%clk 0:00:27.5]} 50.
b3 {[%clk 0:00:16.7]} 50... Nd5+ {[%clk 0:00:27.8]} 51. Kf3 {[%clk 0:00:17.3]}
51... b6 {[%clk 0:00:26.5]} 52. Nb2 {[%clk 0:00:16.4]} 52... b5 {[%clk
0:00:26.4]} 53. Nd3 {[%clk 0:00:15.9]} 53... Nb6 {[%clk 0:00:25.1]} 54. Nc5
{[%clk 0:00:15.8]} 54... bxa4 {[%clk 0:00:22.3]} 55. bxa4 {[%clk 0:00:15.5]}
55... Ke5 {[%clk 0:00:22.7]} 56. Nb3 {[%clk 0:00:13.1]} 56... Nxa4 {[%clk
0:00:22.8]} 57. Nxa5 {[%clk 0:00:13.6]} 57... c5 {[%clk 0:00:23.1]} 58. Nc4+
{[%clk 0:00:12.9]} 58... Ke6 {[%clk 0:00:23]} 59. Kf4 {[%clk 0:00:10]} 59... Nc3
{[%clk 0:00:23]} 60. g3 {[%clk 0:00:06.6]} 60... Nd5+ {[%clk 0:00:20.5]} 61. Kf3
{[%clk 0:00:07.3]} 61... Nf6 {[%clk 0:00:20.6]} 62. Kf4 {[%clk 0:00:07.2]} 62...
Nh5+ {[%clk 0:00:19.8]} 63. Kf3 {[%clk 0:00:07.6]} 63... Kd5 {[%clk 0:00:19.7]}
64. Ne3+ {[%clk 0:00:07.6]} 64... Ke5 {[%clk 0:00:19.7]} 65. Nxf5 {[%clk
0:00:07.5]} 65... Kxf5 {[%clk 0:00:16.3]} 66. g4+ {[%clk 0:00:07.8]} 66... Kg5
{[%clk 0:00:16.1]} 67. gxh5 {[%clk 0:00:08.1]} 67... Kxh5 {[%clk 0:00:16.7]} 68.
Ke4 {[%clk 0:00:08.8]} 68... c4 {[%clk 0:00:16.3]} 69. Kd4 {[%clk 0:00:09.2]}
69... c3 {[%clk 0:00:16.7]} 70. Kxc3 {[%clk 0:00:09.8]} 1/2-1/2

[Event "*** Titled Tuesday Blitz"]
[Site "Chess.com"]
[Date "2020.05.12"]
[Round "4"]
[White "nitpicker"]
[Black "earling8018"]
[Result "1-0"]
[WhiteElo "2249"]
[BlackElo "2024"]
[TimeControl "180+1"]
[EndTime "10:40:03 PDT"]
[Termination "nitpicker won by resignation"]

1. d4 {[%clk 0:03:00.9]} 1... d6 {[%clk 0:02:59.6]} 2. e4 {[%clk 0:02:58.7]}
2... g6 {[%clk 0:03:00.5]} 3. Nc3 {[%clk 0:02:58.1]} 3... Bg7 {[%clk 0:03:00.6]}
4. h3 {[%clk 0:02:58.2]} 4... Nf6 {[%clk 0:03:00.4]} 5. Nge2 {[%clk 0:02:56.6]}
5... c5 {[%clk 0:02:52.9]} 6. dxc5 {[%clk 0:02:51.8]} 6... dxc5 {[%clk
0:02:53.1]} 7. Qxd8+ {[%clk 0:02:49.6]} 7... Kxd8 {[%clk 0:02:54]} 8. Be3 {[%clk
0:02:39.8]} 8... b6 {[%clk 0:02:51.5]} 9. e5 {[%clk 0:02:39.5]} 9... Nfd7 {[%clk
0:02:38.5]} 10. f4 {[%clk 0:02:36.9]} 10... Nc6 {[%clk 0:02:37.4]} 11. O-O-O
{[%clk 0:02:34.2]} 11... Bb7 {[%clk 0:02:32.2]} 12. Rg1 {[%clk 0:02:30.2]} 12...
Kc8 {[%clk 0:02:31.3]} 13. g4 {[%clk 0:02:26.4]} 13... Rd8 {[%clk 0:02:26.3]}
14. Bg2 {[%clk 0:02:23.9]} 14... Nf8 {[%clk 0:02:22.5]} 15. Rxd8+ {[%clk
0:02:08.8]} 15... Nxd8 {[%clk 0:02:17.3]} 16. Bxb7+ {[%clk 0:02:03.3]} 16...
Kxb7 {[%clk 0:02:14.8]} 17. Rd1 {[%clk 0:01:48.3]} 17... Nc6 {[%clk 0:02:13.3]}
18. Nd5 {[%clk 0:01:36.2]} 18... g5 {[%clk 0:02:05.7]} 19. fxg5 {[%clk
0:01:27.1]} 19... Bxe5 {[%clk 0:02:05.3]} 20. Rf1 {[%clk 0:01:26]} 20... f6
{[%clk 0:01:32.5]} 21. gxf6 {[%clk 0:01:24.8]} 21... exf6 {[%clk 0:01:33.4]} 22.
Nxf6 {[%clk 0:01:23.6]} 22... Ne6 {[%clk 0:01:33.5]} 23. Nd7 {[%clk 0:01:17.5]}
23... Bd4 {[%clk 0:01:30.2]} 24. Bd2 {[%clk 0:01:07.9]} 24... Re8 {[%clk
0:01:15.7]} 25. c3 {[%clk 0:00:56.4]} 25... Bh8 {[%clk 0:01:11.9]} 26. Rf7
{[%clk 0:00:54.5]} 26... Re7 {[%clk 0:01:11.8]} 27. Rxe7 {[%clk 0:00:49.6]}
27... Nxe7 {[%clk 0:01:12.7]} 28. Nf4 {[%clk 0:00:44.6]} 28... Ng5 {[%clk
0:00:58.8]} 29. Nf8 {[%clk 0:00:39]} 29... h6 {[%clk 0:00:51.6]} 30. N8g6 {[%clk
0:00:28.7]} 30... Nxg6 {[%clk 0:00:49.2]} 31. Nxg6 {[%clk 0:00:27.9]} 31... Bg7
{[%clk 0:00:46.4]} 32. h4 {[%clk 0:00:22.4]} 32... Nf3 {[%clk 0:00:45.5]} 33.
Bf4 {[%clk 0:00:19.9]} 33... Kc6 {[%clk 0:00:43.8]} 34. Kd1 {[%clk 0:00:18.6]}
34... Kd5 {[%clk 0:00:25.1]} 35. Bb8 {[%clk 0:00:16]} 35... a6 {[%clk
0:00:21.5]} 36. Ke2 {[%clk 0:00:15.8]} 36... Ke4 {[%clk 0:00:21.4]} 37. Ba7
{[%clk 0:00:13.1]} 37... b5 {[%clk 0:00:08.9]} 38. Bxc5 {[%clk 0:00:12.2]} 38...
Nh2 {[%clk 0:00:08.3]} 39. g5 {[%clk 0:00:08.1]} 39... hxg5 {[%clk 0:00:08.6]}
40. hxg5 {[%clk 0:00:08.3]} 40... Nf3 {[%clk 0:00:09.3]} 41. Be7 {[%clk
0:00:07.8]} 41... Kf5 {[%clk 0:00:08]} 42. Kxf3 {[%clk 0:00:06.7]} 42... Kxg6
{[%clk 0:00:08.2]} 43. Kg4 {[%clk 0:00:07.3]} 43... b4 {[%clk 0:00:08.4]} 44.
Bxb4 {[%clk 0:00:06.9]} 44... Be5 {[%clk 0:00:06.3]} 45. Bc5 {[%clk 0:00:05.9]}
45... a5 {[%clk 0:00:05.8]} 46. Bd4 {[%clk 0:00:05.6]} 46... Bd6 {[%clk
0:00:05.5]} 47. b3 {[%clk 0:00:05.2]} 47... Bh2 {[%clk 0:00:04]} 48. c4 {[%clk
0:00:05]} 48... Bc7 {[%clk 0:00:04.4]} 49. c5 {[%clk 0:00:05.1]} 49... Bd8
{[%clk 0:00:04.3]} 50. a3 {[%clk 0:00:04.9]} 50... Bc7 {[%clk 0:00:05]} 51. b4
{[%clk 0:00:04.9]} 51... Bd8 {[%clk 0:00:05.4]} 52. Be3 {[%clk 0:00:04.4]} 52...
Bc7 {[%clk 0:00:05.9]} 53. b5 {[%clk 0:00:04]} 53... Bb8 {[%clk 0:00:05.2]} 54.
b6 {[%clk 0:00:03.7]} 54... Be5 {[%clk 0:00:04.9]} 55. c6 {[%clk 0:00:03.6]}
55... Kg7 {[%clk 0:00:05.2]} 56. c7 {[%clk 0:00:03.4]} 56... Bxc7 {[%clk
0:00:06.1]} 57. bxc7 {[%clk 0:00:03]} 57... Kf7 {[%clk 0:00:06.1]} 58. c8=Q
{[%clk 0:00:03.9]} 58... Ke7 {[%clk 0:00:05.8]} 59. Qa6 {[%clk 0:00:04.8]} 59...
Kd7 {[%clk 0:00:05.4]} 60. Qxa5 {[%clk 0:00:05.7]} 60... Kc6 {[%clk 0:00:04.9]}
61. Qe5 {[%clk 0:00:06.6]} 61... Kd7 {[%clk 0:00:04.9]} 62. g6 {[%clk
0:00:07.5]} 62... Kc6 {[%clk 0:00:05.3]} 63. g7 {[%clk 0:00:08.4]} 63... Kd7
{[%clk 0:00:06]} 64. g8=Q {[%clk 0:00:09.3]} 64... Kc6 {[%clk 0:00:06.7]} 65.
Qg6+ {[%clk 0:00:10.1]} 1-0

[Event "*** Titled Tuesday Blitz"]
[Site "Chess.com"]
[Date "2020.05.12"]
[Round "4"]
[White "Pomegranate988"]
[Black "BabyFacedAssasin"]
[Result "1-0"]
[WhiteElo "2502"]
[BlackElo "2257"]
[TimeControl "180+1"]
[EndTime "10:40:04 PDT"]
[Termination "Pomegranate988 won by resignation"]

1. d4 {[%clk 0:03:00.9]} 1... f5 {[%clk 0:02:57.4]} 2. Bg5 {[%clk 0:02:58.9]}
2... g6 {[%clk 0:02:55]} 3. Nc3 {[%clk 0:02:50.6]} 3... Bg7 {[%clk 0:02:53.3]}
4. e4 {[%clk 0:02:49.7]} 4... fxe4 {[%clk 0:02:54.2]} 5. Nxe4 {[%clk 0:02:49.2]}
5... d5 {[%clk 0:02:54.9]} 6. Ng3 {[%clk 0:02:44.3]} 6... c5 {[%clk 0:02:52.8]}
7. Nf3 {[%clk 0:02:41.8]} 7... Nc6 {[%clk 0:02:52.1]} 8. c3 {[%clk 0:02:34.5]}
8... Qb6 {[%clk 0:02:44.5]} 9. Bd3 {[%clk 0:02:13.2]} 9... c4 {[%clk 0:02:21.1]}
10. Bc2 {[%clk 0:02:08.2]} 10... Qxb2 {[%clk 0:02:14.1]} 11. Bd2 {[%clk
0:02:01.4]} 11... Nf6 {[%clk 0:02:02.7]} 12. O-O {[%clk 0:01:58.4]} 12... O-O
{[%clk 0:02:00.3]} 13. h3 {[%clk 0:01:55.8]} 13... Qa3 {[%clk 0:01:53]} 14. Re1
{[%clk 0:01:53.5]} 14... b5 {[%clk 0:01:46.2]} 15. Ne5 {[%clk 0:01:49.2]} 15...
Bb7 {[%clk 0:01:08.2]} 16. Qe2 {[%clk 0:01:13.8]} 16... Nxe5 {[%clk 0:00:43.3]}
17. Qxe5 {[%clk 0:01:13.2]} 17... Rae8 {[%clk 0:00:33.2]} 18. Qe6+ {[%clk
0:01:04.5]} 18... Kh8 {[%clk 0:00:31.9]} 19. Re2 {[%clk 0:00:49.7]} 19... b4
{[%clk 0:00:26.3]} 20. cxb4 {[%clk 0:00:46.2]} 20... Qb2 {[%clk 0:00:25.2]} 21.
Rc1 {[%clk 0:00:41.4]} 21... Qxd4 {[%clk 0:00:25.3]} 22. Be3 {[%clk 0:00:36.6]}
22... Qh4 {[%clk 0:00:18.9]} 23. Bxa7 {[%clk 0:00:33.2]} 23... d4 {[%clk
0:00:18.3]} 24. Qxc4 {[%clk 0:00:22.4]} 24... e5 {[%clk 0:00:16.5]} 25. Qc7
{[%clk 0:00:19.2]} 25... Ba6 {[%clk 0:00:14.4]} 26. Ree1 {[%clk 0:00:16]} 26...
Rc8 {[%clk 0:00:13.8]} 27. Qb6 {[%clk 0:00:15.3]} 27... d3 {[%clk 0:00:12.3]}
28. Qxa6 {[%clk 0:00:15]} 28... d2 {[%clk 0:00:11.9]} 29. Qe2 {[%clk 0:00:13.2]}
29... dxe1=Q+ {[%clk 0:00:10.8]} 30. Rxe1 {[%clk 0:00:12.5]} 30... e4 {[%clk
0:00:07.5]} 31. Bc5 {[%clk 0:00:12.3]} 31... Rfd8 {[%clk 0:00:06.6]} 32. a4
{[%clk 0:00:12]} 32... e3 {[%clk 0:00:04.8]} 33. Qxe3 {[%clk 0:00:09.7]} 33...
Qc4 {[%clk 0:00:04.4]} 34. Qe2 {[%clk 0:00:07.8]} 34... Qxe2 {[%clk 0:00:04.2]}
35. Rxe2 {[%clk 0:00:07.6]} 35... Nd7 {[%clk 0:00:04.6]} 36. Be7 {[%clk
0:00:06.8]} 36... Re8 {[%clk 0:00:04.7]} 37. a5 {[%clk 0:00:07.1]} 37... Bf6
{[%clk 0:00:04.4]} 38. Bxf6+ {[%clk 0:00:06.9]} 38... Nxf6 {[%clk 0:00:04.7]}
39. Rxe8+ {[%clk 0:00:07.5]} 39... Rxe8 {[%clk 0:00:05.4]} 40. b5 {[%clk
0:00:06.4]} 40... Nd5 {[%clk 0:00:05.5]} 41. a6 {[%clk 0:00:05.8]} 41... Nb6
{[%clk 0:00:05.6]} 42. Be4 {[%clk 0:00:05.3]} 42... Kg7 {[%clk 0:00:05.6]} 43.
Bc6 {[%clk 0:00:05.7]} 43... Rd8 {[%clk 0:00:05.7]} 44. Ne4 {[%clk 0:00:04.9]}
44... Kf7 {[%clk 0:00:05.3]} 45. Kh2 {[%clk 0:00:05.2]} 45... Ke6 {[%clk
0:00:05.2]} 46. f4 {[%clk 0:00:05.7]} 46... Rh8 {[%clk 0:00:03]} 47. Kg3 {[%clk
0:00:06.2]} 47... h6 {[%clk 0:00:03.5]} 48. Kg4 {[%clk 0:00:06.6]} 48... h5+
{[%clk 0:00:03.6]} 49. Kg5 {[%clk 0:00:06.4]} 49... Rf8 {[%clk 0:00:04.2]} 50.
Nc5+ {[%clk 0:00:06.6]} 50... Kd6 {[%clk 0:00:04.2]} 51. Ne4+ {[%clk 0:00:06.9]}
51... Ke6 {[%clk 0:00:04.4]} 52. Kxg6 {[%clk 0:00:07.4]} 52... Rxf4 {[%clk
0:00:04.2]} 53. Ng5+ {[%clk 0:00:08]} 53... Kd6 {[%clk 0:00:04.3]} 54. Kxh5
{[%clk 0:00:08.5]} 54... Rf2 {[%clk 0:00:04.4]} 55. g4 {[%clk 0:00:09]} 55...
Rh2 {[%clk 0:00:04.5]} 56. h4 {[%clk 0:00:09.5]} 56... Rb2 {[%clk 0:00:04.6]}
57. Ne4+ {[%clk 0:00:10.1]} 57... Ke5 {[%clk 0:00:04.8]} 58. g5 {[%clk
0:00:10.4]} 58... Rh2 {[%clk 0:00:04.9]} 59. g6 {[%clk 0:00:10.2]} 59... Kf5
{[%clk 0:00:04.7]} 60. g7 {[%clk 0:00:09.9]} 60... Rg2 {[%clk 0:00:05.2]} 61.
Ng5 {[%clk 0:00:10.4]} 61... Rxg5+ {[%clk 0:00:04.2]} 62. hxg5 {[%clk
0:00:09.8]} 62... Nd5 {[%clk 0:00:04.7]} 63. g8=Q {[%clk 0:00:09.3]} 63... Nf4+
{[%clk 0:00:05.6]} 64. Kh6 {[%clk 0:00:09.5]} 1-0

[Event "*** Titled Tuesday Blitz"]
[Site "Chess.com"]
[Date "2020.05.12"]
[Round "4"]
[White "MITerryble"]
[Black "Riazantsev"]
[Result "1-0"]
[WhiteElo "2850"]
[BlackElo "2666"]
[TimeControl "180+1"]
[EndTime "10:40:05 PDT"]
[Termination "MITerryble won on time"]

1. d4 {[%clk 0:03:00.9]} 1... Nf6 {[%clk 0:02:58.8]} 2. Nf3 {[%clk 0:03:01.3]}
2... d5 {[%clk 0:02:58.4]} 3. c4 {[%clk 0:03:01.3]} 3... e6 {[%clk 0:02:58.4]}
4. e3 {[%clk 0:03:00.9]} 4... Bd6 {[%clk 0:02:57.1]} 5. b3 {[%clk 0:03:01.2]}
5... b6 {[%clk 0:02:56.8]} 6. Bd3 {[%clk 0:03:01.6]} 6... O-O {[%clk 0:02:56.3]}
7. Bb2 {[%clk 0:03:02.1]} 7... Bb7 {[%clk 0:02:55.9]} 8. O-O {[%clk 0:03:02.6]}
8... Nbd7 {[%clk 0:02:55.5]} 9. Ne5 {[%clk 0:03:02.7]} 9... Qe7 {[%clk
0:02:47.8]} 10. Qc2 {[%clk 0:02:47.5]} 10... a6 {[%clk 0:02:42]} 11. Nxd7 {[%clk
0:02:37.6]} 11... Qxd7 {[%clk 0:02:41.3]} 12. c5 {[%clk 0:02:38.1]} 12... Be7
{[%clk 0:02:40.4]} 13. Nd2 {[%clk 0:02:36.2]} 13... b5 {[%clk 0:02:08.7]} 14.
Nf3 {[%clk 0:02:20.9]} 14... c6 {[%clk 0:02:07]} 15. Ne5 {[%clk 0:02:21.1]}
15... Qc7 {[%clk 0:02:06.7]} 16. f4 {[%clk 0:02:22]} 16... a5 {[%clk 0:02:01.7]}
17. a3 {[%clk 0:02:13.5]} 17... g6 {[%clk 0:01:54.8]} 18. g4 {[%clk 0:01:57.5]}
18... Nd7 {[%clk 0:01:41]} 19. g5 {[%clk 0:01:49.4]} 19... Ba6 {[%clk
0:01:16.3]} 20. h4 {[%clk 0:01:23]} 20... Nxe5 {[%clk 0:01:12.7]} 21. fxe5
{[%clk 0:01:06.6]} 21... Kg7 {[%clk 0:01:13]} 22. Qg2 {[%clk 0:01:02.2]} 22...
b4 {[%clk 0:01:08.7]} 23. Bxa6 {[%clk 0:01:00.8]} 23... Rxa6 {[%clk 0:01:09.6]}
24. a4 {[%clk 0:00:52.2]} 24... h6 {[%clk 0:00:58.3]} 25. gxh6+ {[%clk
0:00:48.4]} 25... Kxh6 {[%clk 0:00:58.5]} 26. Rf4 {[%clk 0:00:42.7]} 26... Ra7
{[%clk 0:00:48.9]} 27. Raf1 {[%clk 0:00:42.1]} 27... Bd8 {[%clk 0:00:49.3]} 28.
h5 {[%clk 0:00:23.7]} 28... Rg8 {[%clk 0:00:38.5]} 29. Kh1 {[%clk 0:00:14]}
29... Kh7 {[%clk 0:00:38]} 30. Qf3 {[%clk 0:00:08.7]} 30... Kg7 {[%clk
0:00:11.3]} 31. hxg6 {[%clk 0:00:03.6]} 31... fxg6 {[%clk 0:00:07.3]} 32. Qg4
{[%clk 0:00:03.8]} 32... Rh8+ {[%clk 0:00:06.9]} 33. Kg2 {[%clk 0:00:03.6]}
33... Qe7 {[%clk 0:00:07.5]} 34. Rf6 {[%clk 0:00:03.9]} 34... Rh6 {[%clk
0:00:05.4]} 35. Qxe6 {[%clk 0:00:02.7]} 35... Qxe6 {[%clk 0:00:05.5]} 36. Rxe6
{[%clk 0:00:03.6]} 36... Bg5 {[%clk 0:00:04.9]} 37. Rf3 {[%clk 0:00:03]} 37...
Rc7 {[%clk 0:00:04.1]} 38. Bc1 {[%clk 0:00:02.8]} 38... Rh4 {[%clk 0:00:03.8]}
39. Bd2 {[%clk 0:00:03.1]} 39... Rg4+ {[%clk 0:00:04.1]} 40. Rg3 {[%clk
0:00:02]} 40... Rxg3+ {[%clk 0:00:03.9]} 41. Kxg3 {[%clk 0:00:02.9]} 41... Kf7
{[%clk 0:00:04.7]} 42. Rd6 {[%clk 0:00:03]} 42... Be7 {[%clk 0:00:05.2]} 43. e6+
{[%clk 0:00:02.9]} 43... Ke8 {[%clk 0:00:04.2]} 44. Rd7 {[%clk 0:00:01.2]} 44...
Rxd7 {[%clk 0:00:04.5]} 45. exd7+ {[%clk 0:00:02.1]} 45... Kxd7 {[%clk
0:00:05.4]} 46. Kf3 {[%clk 0:00:02.8]} 46... Ke6 {[%clk 0:00:05.5]} 47. e4
{[%clk 0:00:03.2]} 47... dxe4+ {[%clk 0:00:04.5]} 48. Kxe4 {[%clk 0:00:04.1]}
48... Bf6 {[%clk 0:00:05.1]} 49. Bf4 {[%clk 0:00:03.9]} 49... Bg7 {[%clk
0:00:04.9]} 50. Bc7 {[%clk 0:00:03.9]} 50... g5 {[%clk 0:00:02.8]} 51. Bxa5
{[%clk 0:00:04.3]} 51... g4 {[%clk 0:00:03.7]} 52. Bxb4 {[%clk 0:00:04.5]} 52...
g3 {[%clk 0:00:04.2]} 53. Be1 {[%clk 0:00:05]} 53... g2 {[%clk 0:00:03.8]} 54.
Bf2 {[%clk 0:00:05.3]} 54... Bh6 {[%clk 0:00:03.4]} 55. b4 {[%clk 0:00:05.3]}
55... Kd7 {[%clk 0:00:03.7]} 56. b5 {[%clk 0:00:05.2]} 56... Bd2 {[%clk
0:00:03.9]} 57. d5 {[%clk 0:00:04.7]} 57... cxd5+ {[%clk 0:00:02.1]} 58. Kxd5
{[%clk 0:00:05.6]} 58... Be1 {[%clk 0:00:03]} 59. Bg1 {[%clk 0:00:05.5]} 59...
Kc7 {[%clk 0:00:03.2]} 60. b6+ {[%clk 0:00:04.9]} 60... Kb7 {[%clk 0:00:03.4]}
61. c6+ {[%clk 0:00:05.8]} 61... Ka6 {[%clk 0:00:02.5]} 62. b7 {[%clk
0:00:04.1]} 1-0

[Event "*** Titled Tuesday Blitz"]
[Site "Chess.com"]
[Date "2020.05.12"]
[Round "4"]
[White "ElGasanov"]
[Black "GodDMuhammad"]
[Result "1-0"]
[WhiteElo "2732"]
[BlackElo "2289"]
[TimeControl "180+1"]
[EndTime "10:40:05 PDT"]
[Termination "ElGasanov won by checkmate"]

1. d4 {[%clk 0:03:00.9]} 1... Nf6 {[%clk 0:02:54.1]} 2. Nf3 {[%clk 0:03:00.6]}
2... e6 {[%clk 0:02:37.9]} 3. c4 {[%clk 0:02:58.3]} 3... Bb4+ {[%clk 0:02:35.8]}
4. Nc3 {[%clk 0:02:57.7]} 4... c5 {[%clk 0:02:35.4]} 5. g3 {[%clk 0:02:56.4]}
5... d5 {[%clk 0:02:28.9]} 6. cxd5 {[%clk 0:02:55.2]} 6... Nxd5 {[%clk
0:02:28.7]} 7. Bd2 {[%clk 0:02:51.9]} 7... Nc6 {[%clk 0:02:24.7]} 8. Nxd5 {[%clk
0:02:46.9]} 8... Qxd5 {[%clk 0:02:21.9]} 9. Bxb4 {[%clk 0:02:44.3]} 9... cxb4
{[%clk 0:02:14.3]} 10. Bg2 {[%clk 0:02:42.6]} 10... O-O {[%clk 0:02:11.3]} 11.
O-O {[%clk 0:02:43.1]} 11... Qh5 {[%clk 0:01:47]} 12. Rc1 {[%clk 0:02:34.7]}
12... Rd8 {[%clk 0:01:41.7]} 13. Rc5 {[%clk 0:02:32.4]} 13... Qg6 {[%clk
0:01:26.6]} 14. Qd2 {[%clk 0:02:18.4]} 14... Bd7 {[%clk 0:01:20.5]} 15. Qf4
{[%clk 0:02:13.6]} 15... Kf8 {[%clk 0:00:54.8]} 16. Rfc1 {[%clk 0:02:00.6]}
16... Rac8 {[%clk 0:00:47.4]} 17. e3 {[%clk 0:01:41.2]} 17... f6 {[%clk
0:00:41.4]} 18. h4 {[%clk 0:01:32.8]} 18... Qf7 {[%clk 0:00:32.4]} 19. g4 {[%clk
0:01:28.7]} 19... Kg8 {[%clk 0:00:29.3]} 20. g5 {[%clk 0:01:26.8]} 20... Ne7
{[%clk 0:00:28.6]} 21. Rxc8 {[%clk 0:01:14.6]} 21... Rxc8 {[%clk 0:00:25]} 22.
Rxc8+ {[%clk 0:01:14]} 22... Bxc8 {[%clk 0:00:25.9]} 23. Qb8 {[%clk 0:01:01.6]}
23... a6 {[%clk 0:00:20.4]} 24. Qd6 {[%clk 0:01:00.4]} 24... Nf5 {[%clk
0:00:18.4]} 25. Qxb4 {[%clk 0:00:57.2]} 25... Qc7 {[%clk 0:00:14.4]} 26. Qc5
{[%clk 0:00:36]} 26... Qxc5 {[%clk 0:00:13.3]} 27. dxc5 {[%clk 0:00:35.8]} 27...
Kf7 {[%clk 0:00:14.2]} 28. h5 {[%clk 0:00:31.5]} 28... Ne7 {[%clk 0:00:12.7]}
29. gxf6 {[%clk 0:00:28.2]} 29... gxf6 {[%clk 0:00:12.8]} 30. b4 {[%clk
0:00:22.1]} 30... Ke8 {[%clk 0:00:12.9]} 31. Nd4 {[%clk 0:00:21.7]} 31... Kd7
{[%clk 0:00:13.8]} 32. f4 {[%clk 0:00:19.7]} 32... Kc7 {[%clk 0:00:12.2]} 33.
Kf2 {[%clk 0:00:20]} 33... h6 {[%clk 0:00:11.9]} 34. Ke2 {[%clk 0:00:18.7]}
34... Bd7 {[%clk 0:00:12.3]} 35. Kd3 {[%clk 0:00:18]} 35... b6 {[%clk
0:00:12.4]} 36. cxb6+ {[%clk 0:00:16.7]} 36... Kxb6 {[%clk 0:00:13.3]} 37. Nb3
{[%clk 0:00:16.8]} 37... Bb5+ {[%clk 0:00:11.5]} 38. Kd2 {[%clk 0:00:17.1]}
38... Bc4 {[%clk 0:00:11.1]} 39. Nc5 {[%clk 0:00:15.6]} 39... Bxa2 {[%clk
0:00:09.7]} 40. Bf1 {[%clk 0:00:15.5]} 40... Bd5 {[%clk 0:00:09.5]} 41. Nd7+
{[%clk 0:00:13.9]} 41... Kc7 {[%clk 0:00:09.5]} 42. Nxf6 {[%clk 0:00:14.6]}
42... Kd6 {[%clk 0:00:10.4]} 43. Bxa6 {[%clk 0:00:12.7]} 43... Bf3 {[%clk
0:00:10.2]} 44. Be2 {[%clk 0:00:12.8]} 44... Bxe2 {[%clk 0:00:10]} 45. Kxe2
{[%clk 0:00:13.4]} 45... Nf5 {[%clk 0:00:10.4]} 46. e4 {[%clk 0:00:11.4]} 46...
Ng3+ {[%clk 0:00:10.6]} 47. Kf3 {[%clk 0:00:11.5]} 47... Nf1 {[%clk 0:00:11.1]}
48. Ng4 {[%clk 0:00:10.5]} 48... Nd2+ {[%clk 0:00:11]} 49. Ke3 {[%clk
0:00:10.7]} 49... Nc4+ {[%clk 0:00:11.5]} 50. Kd4 {[%clk 0:00:11.1]} 50... Na3
{[%clk 0:00:09.3]} 51. Nxh6 {[%clk 0:00:10.8]} 51... Nb5+ {[%clk 0:00:09.4]} 52.
Kd3 {[%clk 0:00:11.2]} 52... e5 {[%clk 0:00:08.2]} 53. Nf7+ {[%clk 0:00:11.1]}
53... Ke6 {[%clk 0:00:08.5]} 54. Nxe5 {[%clk 0:00:11.6]} 54... Nd6 {[%clk
0:00:08.7]} 55. h6 {[%clk 0:00:10.8]} 55... Kf6 {[%clk 0:00:09.2]} 56. Ng4+
{[%clk 0:00:07.6]} 56... Kg6 {[%clk 0:00:09.2]} 57. f5+ {[%clk 0:00:08]} 57...
Kh7 {[%clk 0:00:09.7]} 58. f6 {[%clk 0:00:06.7]} 58... Nf7 {[%clk 0:00:09.7]}
59. e5 {[%clk 0:00:06.3]} 59... Kg6 {[%clk 0:00:10.6]} 60. e6 {[%clk 0:00:06.2]}
60... Nxh6 {[%clk 0:00:09.7]} 61. Nxh6 {[%clk 0:00:06]} 61... Kxf6 {[%clk
0:00:10.6]} 62. Kc4 {[%clk 0:00:04.9]} 62... Kxe6 {[%clk 0:00:11.1]} 63. Kb5
{[%clk 0:00:05.6]} 63... Kd6 {[%clk 0:00:12]} 64. Kb6 {[%clk 0:00:06]} 64... Kd7
{[%clk 0:00:12.3]} 65. b5 {[%clk 0:00:06.5]} 65... Kc8 {[%clk 0:00:13.2]} 66.
Kc6 {[%clk 0:00:07]} 66... Kb8 {[%clk 0:00:14.1]} 67. b6 {[%clk 0:00:07.9]}
67... Kc8 {[%clk 0:00:14.7]} 68. Nf7 {[%clk 0:00:07.8]} 68... Kb8 {[%clk
0:00:15.6]} 69. b7 {[%clk 0:00:07.8]} 69... Ka7 {[%clk 0:00:15.6]} 70. Kc7
{[%clk 0:00:08.4]} 70... Ka6 {[%clk 0:00:15.9]} 71. b8=Q {[%clk 0:00:08.7]}
71... Ka5 {[%clk 0:00:16.8]} 72. Qb3 {[%clk 0:00:09.1]} 72... Ka6 {[%clk
0:00:16.9]} 73. Qb6# {[%clk 0:00:09]} 1-0